Cogmind - Beta 15 @@@ ROGUE MODE // 2025.07.07 @ 15:57:47 Player: LightKnight Result: Destroyed by DAS Turret with DAS Cannon Performance ------------- Evolutions (1) 500 Regions Visited (5) 1000 Robots Destroyed (72) 360 Value Destroyed (1596) 1596 Prototype IDs (21) 420 Alien Tech Used (0) 0 Bonus (67) 67 TOTAL SCORE: 3943 Bonus ------- High Alert Combat Kills 67 Cogmind --------- Core Integrity 0/400 Matter 136/300 Energy 240/240 System Corruption 0% Temperature Cool (0) Movement Treading (320) Ox2 Location -9/Exiles Parts ------- > --- POWER (1) -------- Nuclear Core > --- PROPULSION (3) --- Light Treads > --- UTILITY (2) ------ High-capacity Storage Unit > --- WEAPON (3) ------- (None) > --- INVENTORY (20) --- Advanced Myomer Leg High-capacity Matter Pod (0) Seismic Detector Advanced Weapon Cycler Bomb Drone Bay (16/16) 8R-AWN's Boregun Rocket Launcher Peak State ------------ > --- POWER ------------ Improved Ion Engine > --- PROPULSION ------- Light Treads Light Treads Light Treads > --- UTILITY ---------- Bomb Drone Bay > --- WEAPON ----------- High-powered Shotgun High-powered Shotgun > --- INVENTORY -------- Light Angular Momentum Engine High-capacity Matter Pod Assault Rifle [Rating: 25] Favorites ----------- Power Improved Ion Engine Engine Improved Ion Engine Power Core Nuclear Core Propulsion Light Treads Treads Light Treads Leg Aluminum Leg Utility High-capacity Storage Unit Device Seismic Detector Storage High-capacity Storage Unit Processor Targeting Computer Protection Powered Armor Weapon High-powered Shotgun Energy Cannon Heavy Particle Cannon Ballistic Gun High-powered Shotgun Ballistic Cannon Light Cannon Launcher Rocket Launcher Special Melee Weapon Improved Datajack Build | -11 -10 -10 -9 -9 -9 ------- Run | Yrd Mat Min Mat Min Exi Slots Evolved 2 | . . . 2 . . Power . | . . . . . . Propulsion 1 | . . . 1 . . Utility . | . . . . . . Weapon 1 | . . . 1 . . Parts Attached 44 | . 12 2 14 2 14 Power 5 | . 1 1 1 . 2 Engine 4 | . 1 1 1 . 1 Core 1 | . . . . . 1 Reactor . | . . . . . . Propulsion 15 | . 2 . 6 . 7 Treads 15 | . 2 . 6 . 7 Leg . | . . . . . . Wheel . | . . . . . . Hover . | . . . . . . Flight . | . . . . . . Utility 9 | . 5 . 1 1 2 Device 4 | . 3 . . . 1 Storage 2 | . 1 . 1 . . Processor 1 | . 1 . . . . Hackware . | . . . . . . Protection 2 | . . . . 1 1 Artifact . | . . . . . . Weapon 15 | . 4 1 6 1 3 Energy Gun . | . . . . . . Energy Cannon 1 | . . 1 . . . Ballistic Gun 10 | . 2 . 5 1 2 Ballistic Cannon 2 | . 2 . . . . Launcher 1 | . . . . . 1 Special Weapon . | . . . . . . Impact Weapon . | . . . . . . Slashing Weapon . | . . . . . . Piercing Weapon . | . . . . . . Special Melee Weapon 1 | . . . 1 . . Unidentified Prototypes 1 | . . . . . 1 Parts Lost 23 | . 2 . 1 . 20 Power 3 | . . . 1 . 2 Propulsion 9 | . . . . . 9 Utility 3 | . 1 . . . 2 Weapon 8 | . 1 . . . 7 Highest Loss Streak 7 | . 1 . 1 . 7 To Critical Strikes 9 | . . . . . 9 Average Backups 14 | . 8 11 18 19 12 Power 1 | . 1 1 1 1 1 Propulsion 4 | . 1 1 5 7 4 Utility 3 | . 2 5 3 3 2 Weapon 4 | . 2 3 5 5 3 Tool/Special . | . . . . . . Unused Backups 21 | . 6 . 7 2 6 Power 4 | . 2 . 1 1 . Propulsion 6 | . 4 . . 1 1 Utility 8 | . . . 4 . 4 Weapon 3 | . . . 2 . 1 Tool/Special . | . . . . . . Average Slot Usage (%) 96 | . 94 100 98 100 89 Engine 11 | . 14 14 10 11 9 Treads 30 | . 23 28 32 33 32 Device 1 | . 6 . . . . Storage 11 | . 14 14 11 11 7 Processor 7 | . 3 14 11 7 . Protection 2 | . . . . 3 9 Ballistic Gun 24 | . 20 . 30 30 24 Ballistic Cannon 4 | . 7 25 2 . . Special Melee Weapon 1 | . . . . 2 4 Peak Build Rating 25 | . 8 13 20 23 25 Average Rating 15 | . 6 9 16 20 18 On Entrance 12 | 6 6 8 13 18 22 Naked Turns . | . . . . . . Heaviest Build 66 | 12 31 34 56 66 66 Greatest Support 60 | 20 40 40 60 60 60 Greatest Overweight (x) 2 | . 1 . 1 1 2 Average Overweight (x) . | . . . . . . Largest Inventory Capacity 20 | . 15 15 20 20 20 Average Capacity 17 | . 12 15 19 20 14 Most Carried 20 | . 10 15 20 20 20 Average Carried 15 | . 8 11 18 19 13 Final Capacity 20 | 8 15 15 20 20 20 Final Carried 20 | 6 10 15 20 20 8 Class Distribution -------------------- 45% | Gunner 43% | Mutant 11% | Tank Dominant Class ---------------- Mutant | -10/Materials Mutant | -10/Mines Gunner | -9/Materials Gunner | -9/Mines Mutant | -9/Exiles Resources | -11 -10 -10 -9 -9 -9 ----------- Run | Yrd Mat Min Mat Min Exi Matter Collected 2635 | 200 637 80 1173 35 510 Remotely . | . . . . . . Salvage Created 2140 | . 532 34 1401 50 123 Parts 152 | . 28 4 107 10 3 Haulers Intercepted 7 | . 1 . 6 . . Recyclers Shooed 4 | . . . 4 . . Parts Field Recycled . | . . . . . . Retrieved Matter . | . . . . . . Parts Self-Destructed . | . . . . . . Prevented . | . . . . . . Kills | -11 -10 -10 -9 -9 -9 ------- Run | Yrd Mat Min Mat Min Exi Combat Hostiles Destroyed 57 | . 12 3 31 3 8 Guns 43 | . 11 . 28 3 1 Cannons 7 | . 1 3 3 . . AOE 7 | . . . . . 7 Classes Destroyed 11 | . 4 . 5 1 1 Worker 5 | . . . 5 . . Builder 1 | . . . 1 . . Tunneler 1 | . . . . 1 . Hauler 7 | . 1 . 6 . . Mechanic 1 | . . . 1 . . Watcher 7 | . 2 . 5 . . Swarmer 19 | . 2 3 11 3 . Grunt 19 | . 10 . 9 . . Duelist 1 | . . . 1 . . Sentry 10 | . . . 10 . . Assembled 7 | . . . . . 7 Best Kill Streak 7 | . 5 3 5 3 7 Combat Bots Only 7 | . 5 3 5 3 7 Max Kills in Single Turn 4 | . 2 1 2 2 4 Gunslinging 1 | . . . 1 1 . Exploded 4 | . . . . . 4 Melee . | . . . . . . Uniques/NPCs Destroyed 1 | . . . . . 1 8R-AWN (-9/Exiles) Combat | -11 -10 -10 -9 -9 -9 -------- Run | Yrd Mat Min Mat Min Exi Hostile Shots Fired 306 | . 57 25 90 5 129 Missed 67 | . 17 4 29 2 15 Hits 239 | . 40 21 61 3 114 Projectile 239 | . 40 21 61 3 114 Critical Strikes 51 | . . . 5 . 46 Damage Taken 4251 | . 536 162 794 25 2734 Core 592 | . 128 38 147 . 279 Absorbed by Shields . | . . . . . . Regen/Repaired (Parts) 332 | . . . 332 . . Core Remaining (%) 66 | 100 . 33 . . . Volleys Fired 273 | . 73 23 107 2 68 Largest 3 | . 2 1 3 3 3 Hottest 75 | . 50 75 75 73 66 Shots Fired 567 | . 125 23 257 6 156 Gun 509 | . 115 . 238 6 150 Cannon 52 | . 10 23 19 . . Launcher 6 | . . . . . 6 Special . | . . . . . . Kinetic 548 | . 125 10 257 6 150 Thermal 13 | . . 13 . . . Explosive 6 | . . . . . 6 Electromagnetic . | . . . . . . Robot Hit Streak 17 | . 12 2 17 3 13 Robot Miss Streak 6 | . 5 3 6 3 4 Penetration Max . | . . . . . . Secondary Targets 7 | . . . 6 1 . Max Gunslinging Chain 1 | . . . 1 1 . Shots Hit Robots 377 | . 86 4 164 3 120 Core Hits 141 | . 29 3 73 4 32 Critical Kills . | . . . . . . Critical Parts Destroyed 4 | . 2 . . . 2 Critical Strikes 7 | . 2 . 2 . 3 Destroy 5 | . 2 . . . 3 Blast 2 | . . . 2 . . Melee Attacks 4 | . . . . . 4 Impact . | . . . . . . Slashing . | . . . . . . Piercing . | . . . . . . Sneak Attacks 4 | . . . . . 4 Combat Hostiles . | . . . . . . Follow-up Attacks . | . . . . . . Damage Inflicted 6099 | . 1176 82 2848 83 1910 Guns 5193 | . 1070 . 2557 50 1516 Cannons 406 | . 92 73 241 . . Explosions 413 | . . . 19 . 394 Melee . | . . . . . . Ramming 87 | . 14 9 31 33 . Kinetic 5599 | . 1162 73 2798 50 1516 Thermal 19 | . . . 19 . . Explosive 394 | . . . . . 394 Electromagnetic . | . . . . . . Impact . | . . . . . . Slashing . | . . . . . . Piercing . | . . . . . . Highest Corruption . | . . . . . . Average Corruption . | . . . . . . Corruption Purged . | . . . . . . Corruption Blocked . | . . . . . . Overload Shots . | . . . . . . Overflow Damage 17 | . . . . . 17 Projectiles . | . . . . . . Explosions 17 | . . . . . 17 Melee . | . . . . . . Knockbacks 4 | . 1 . 2 1 . Impact 1 | . . . . 1 . Kinetic 3 | . 1 . 2 . . Secondary . | . . . . . . Self-Inflicted Damage 60 | . . . 60 . . Shots 1 | . . . 1 . . Rammed 10 | . 3 2 3 2 . Targets Rammed 13 | . 3 2 5 3 . Kicked . | . . . . . . Crushed 3 | . . . 2 1 . Highest Temperature 212 | . 2 212 53 6 155 Average Temperature 39 | . 2 109 13 4 69 Received Heat Transfer 510 | . 219 . 291 . . Siege Activations . | . . . . . . Martial Activations . | . . . . . . Shielding Activations . | . . . . . . Robots Disrupted . | . . . . . . Combat Hostiles . | . . . . . . Robots Corrupted . | . . . . . . Combat Hostiles . | . . . . . . Parts Fried . | . . . . . . Impact Corruptions . | . . . . . . Robots Melted . | . . . . . . Combat Hostiles . | . . . . . . Parts Melted . | . . . . . . Heat Transferred 50 | . . . 50 . . Parts Sabotaged . | . . . . . . Parts Stolen . | . . . . . . Parts Stripped . | . . . . . . Power Chain Reactions . | . . . . . . Alert | -11 -10 -10 -9 -9 -9 ------- Run | Yrd Mat Min Mat Min Exi Maximum Alert Level 2 | . . . 2 1 . Low Security (%) 77 | . 100 100 59 79 . Level 1 7 | . . . 8 20 . Level 2 15 | . . . 32 . . Level 3 . | . . . . . . Level 4 . | . . . . . . Level 5 . | . . . . . . High Security . | . . . . . . Max Security . | . . . . . . Peak Influence 613 | . 112 90 613 290 . Initial 230 | . . . . 230 . Average 136 | . 42 14 231 89 . Influence Increases 1743 | . 405 105 1158 75 . Destroy 0b10 Robot/C 980 | . 240 60 620 60 . Destroy 0b10 Robot/NC 110 | . 15 . 90 5 . Destroy Leader 268 | . 66 10 182 10 . Successful Hack 66 | . 8 . 58 . . Select Force Hacks 120 | . 60 . 60 . . Disable Machine 120 | . . 30 90 . . Destroy Structure 19 | . 1 5 13 . . Partial Spotted 15 | . 15 . . . . Lose Combat Pursuer 45 | . . . 45 . . Influence Decreases 1743 | . 405 105 567 666 . Entered New Map 361 | . . . . 361 . Time Decay 1352 | . 385 105 557 305 . Lost Part 30 | . 20 . 10 . . Squads Dispatched 7 | . 3 1 3 . . Investigation 5 | . 2 1 2 . . Extermination . | . . . . . . Reinforcement 2 | . 1 . 1 . . Assault . | . . . . . . Garrison . | . . . . . . Intercept . | . . . . . . Searches Triggered . | . . . . . . Construction Impeded . | . . . . . . Haulers Reinforced . | . . . . . . Active Scanning Responses . | . . . . . . Cargo Convoy Interrupts . | . . . . . . Stealth | -11 -10 -10 -9 -9 -9 --------- Run | Yrd Mat Min Mat Min Exi Distress Signals 4 | . 1 . 3 . . Communications Jammed . | . . . . . . Distress Signals . | . . . . . . Times Spotted 79 | . 19 3 48 3 6 Peak Tracking Total 9 | . 6 3 5 3 9 Tactical Retreats 3 | . . . 3 . . Traps | -11 -10 -10 -9 -9 -9 ------- Run | Yrd Mat Min Mat Min Exi Traps Triggered 4 | . 1 . 3 . . Indirectly . | . . . . . . Trap Hack Attempts 60 | . . . 22 38 . Triggered . | . . . . . . Disarmed . | . . . . . . Reprogrammed 6 | . . . 3 3 . Reused . | . . . . . . Traps Extracted . | . . . . . . Installed . | . . . . . . Triggered . | . . . . . . Machines | -11 -10 -10 -9 -9 -9 ---------- Run | Yrd Mat Min Mat Min Exi Machines Disabled 12 | . . 3 6 . 3 Max in Single Turn 4 | . . 1 4 . 1 Machines Repaired . | . . . . . . Machines Dismantled . | . . . . . . Machines Sabotaged . | . . . . . . Overloaded Fab Kills . | . . . . . . Hacking | -11 -10 -10 -9 -9 -9 --------- Run | Yrd Mat Min Mat Min Exi Machines Accessed 28 | . 9 2 14 2 1 Terminals 18 | . 7 1 10 . . Fabricators . | . . . . . . Repair Stations 2 | . . . 2 . . Recycling Units 4 | . 2 . 2 . . Scanalyzers . | . . . . . . Garrison Access . | . . . . . . Total Hacks 65 | . 22 3 37 2 1 Successful 42 | . 10 2 27 2 1 Failed 21 | . 11 1 9 . . Catastrophic 4 | . 2 . 2 . . Database Lockouts 2 | . 1 . 1 . . Manual 38 | . 16 2 20 . . Terminals 47 | . 20 2 25 . . Fabricators . | . . . . . . Repair Stations 10 | . . . 10 . . Recycling Units 4 | . 2 . 2 . . Scanalyzers . | . . . . . . Garrison Access . | . . . . . . Terminal Hacks 17 | . 4 1 9 2 1 Record 1 | . . . . . 1 Robot Analysis 3 | . 1 . 2 . . Prototype ID Bank 3 | . 2 . 1 . . Open Door 3 | . . 1 . 2 . Unreport Threat 1 | . . . 1 . . Locate Traps 4 | . 1 . 3 . . Zone Layout 2 | . . . 2 . . Fabricator Hacks . | . . . . . . Repair Station Hacks 8 | . . . 8 . . Scan Component 4 | . . . 4 . . Repair 4 | . . . 4 . . Recycling Unit Hacks . | . . . . . . Scanalyzer . | . . . . . . Garrison Access Hacks . | . . . . . . Unauthorized Hacks 17 | . 6 1 10 . . Terminals 13 | . 4 1 8 . . Track 1 | . . 1 . . . Botnet 11 | . 4 . 7 . . Operators 1 | . . . 1 . . Fabricators . | . . . . . . Repair Stations . | . . . . . . Recycling Units 4 | . 2 . 2 . . Tunnel 4 | . 2 . 2 . . Scanalyzers . | . . . . . . Garrison Access . | . . . . . . Data Cores Recovered . | . . . . . . Used . | . . . . . . Hacking Detections 17 | . 7 1 9 . . Full Trace Events . | . . . . . . Feedback Events . | . . . . . . Feedback Blocked . | . . . . . . Robot Schematics Acquired . | . . . . . . Robots Built . | . . . . . . Authchips . | . . . . . . Time . | . . . . . . Total Robot Build Rating . | . . . . . . Part Schematics Acquired . | . . . . . . Parts Built . | . . . . . . Authchips . | . . . . . . Time . | . . . . . . Total Part Build Rating . | . . . . . . Parts Repaired 4 | . . . 4 . . Time 104 | . . . 104 . . Parts Recycled . | . . . . . . Recycled Matter . | . . . . . . Retrieved Matter . | . . . . . . Retrieved Components . | . . . . . . Parts Scanalyzed . | . . . . . . Part Schematics Acquired . | . . . . . . Parts Damaged . | . . . . . . Bothacking | -11 -10 -10 -9 -9 -9 ------------ Run | Yrd Mat Min Mat Min Exi Used RIF Installer . | . . . . . . Robots Hacked 4 | . . . . . 4 Non-combat 3 | . . . . . 3 Combat 1 | . . . . . 1 Robot Hacks Applied 4 | . . . . . 4 parse_system 4 | . . . . . 4 Relay Couplers Released . | . . . . . . Fabnet Peak Effective % . | . . . . . . Robots Rewired . | . . . . . . Allies Hacked . | . . . . . . Hacks Repelled . | . . . . . . Allies | -11 -10 -10 -9 -9 -9 -------- Run | Yrd Mat Min Mat Min Exi Total Allies 1 | . . 1 . . . Largest Group 1 | . . 1 . . . Highest-Rated Group 31 | . . 31 . . . Highest-Rated Ally 31 | . . 31 . . . Total Orders . | . . . . . . Ally Attacks 7 | . . 7 . . . Total Damage 41 | . . 41 . . . Kills . | . . . . . . Allies Corrupted . | . . . . . . Allies Melted . | . . . . . . Intel | -11 -10 -10 -9 -9 -9 ------- Run | Yrd Mat Min Mat Min Exi Active Infowar (turns) 404 | . 404 . . . . Seismic 404 | . 404 . . . . Robot Analysis Total 3 | . 1 . 2 . . Derelict Logs Recovered 1 | . . . . 1 . Drone Launches . | . . . . . . Drone Recoveries . | . . . . . . Exploration | -11 -10 -10 -9 -9 -9 ------------- Run | Yrd Mat Min Mat Min Exi Turns Passed 6987 | . 1287 666 2700 1071 1263 Spaces Moved 3265 | 1 689 376 1305 441 453 Core . | . . . . . . Treads 3145 | . 570 376 1305 441 453 Legs 120 | 1 119 . . . . Wheels . | . . . . . . Hover . | . . . . . . Flight . | . . . . . . Fastest Speed 120 | 120 120 160 160 160 160 Average Speed 169 | 120 153 160 160 188 212 Slowest Speed 320 | 120 190 160 240 240 320 Overloaded Moves . | . . . . . . Propulsion Burnouts . | . . . . . . Robots Hopped . | . . . . . . Potential Cave-ins . | . . . . . . Cave-ins Triggered . | . . . . . . Exploration Rate (%) 71 | 2 98 62 98 98 69 Regions Visited 5 Branch Regions 3 Pre-discovered Areas 6 | . 2 . 2 1 1 Known Exits Taken . | . . . . . . Unknown Exits Taken 5 | 1 1 1 1 1 . Scrap Searched 5 | . . 2 . 3 . Spaces Dug 3 | . . 3 . . . Terrain Destroyed 38 | . . 12 9 . 17 Melee . | . . . . . . Projectile 12 | . . 12 . . . AOE 26 | . . . 9 . 17 Terrain Rammed . | . . . . . . Walls Destroyed . | . . . . . . Machines Disabled . | . . . . . . Actions | -11 -10 -10 -9 -9 -9 --------- Run | Yrd Mat Min Mat Min Exi Total 4216 | . 793 415 1706 676 626 Wait 441 | . 2 9 199 183 48 Move 3260 | . 688 375 1304 440 453 Hop . | . . . . . . Pick Up 50 | . 6 4 21 2 17 Fast Attach 31 | . 8 . 12 1 10 Attach 16 | . 2 . 3 . 11 Detach 10 | . 4 . 2 1 3 Swap 21 | . 2 2 12 3 2 Drop 37 | . 5 . 19 3 10 Fire 273 | . 73 23 107 2 68 Melee 4 | . . . . . 4 Ram . | . . . . . . Kick . | . . . . . . Crush 13 | . 3 2 5 3 . Escape Stasis . | . . . . . . Rewire . | . . . . . . Trap 60 | . . . 22 38 . Miscellaneous . | . . . . . . Route ------- -11/Scrapyard -10/Materials (discovered 6 exits: *Mat x3 / *Min x2 / [*Sub]) -10/Mines (discovered 2 exits: *Mat x2) -9/Materials (discovered 4 exits: [*Mat x3] / *Min) -9/Mines (discovered 3 exits: [*Mat x2] / *Exi) -9/Exiles History --------- Turn | Location | Event 1 | -11/Scrapyard | Discovered new exit (range 0) 1 | -11/Scrapyard | Entered Materials 50 | -10/Materials | Central database locked down 120 | -10/Materials | Discovered new exit (range 7) 309 | -10/Materials | Build established: Mutant 457 | -10/Materials | Discovered new exit (range 12) 634 | -10/Materials | Discovered new exit (range 9) 858 | -10/Materials | Core integrity fell below 50% 939 | -10/Materials | Discovered new exit (range 6) 1033 | -10/Materials | Discovered new exit (range 11) 1103 | -10/Materials | Discovered new exit (range 15) 1288 | -10/Materials | Entered Mines 1366 | -10/Mines | Discovered new exit (range 6) 1513 | -10/Mines | Discovered new exit (range 8) 1550 | -10/Mines | Received a Mining Laser from a helpful Derelict 1738 | -10/Mines | Assembled infested the area 1791 | -10/Mines | Met a Derelict shopkeep closing up shop 1954 | -10/Mines | Entered Materials 1954 | -9/Materials | Evolved 2 slots: Propulsion x1, Weapon x1 1980 | -9/Materials | Discovered new exit (range 15) 2168 | -9/Materials | Repaired Assault Rifle 2196 | -9/Materials | Repaired Lgt. Treads 2223 | -9/Materials | Repaired Lgt. Treads 2457 | -9/Materials | Build established: Gunner 2618 | -9/Materials | Central database locked down 2874 | -9/Materials | Repaired Lgt. Treads 3103 | -9/Materials | Discovered new exit (range 14) 3884 | -9/Materials | Discovered new exit (range 3) 4017 | -9/Materials | Discovered new exit (range 3) 4654 | -9/Materials | Entered Mines 4666 | -9/Mines | Discovered new exit (range 14) 4700 | -9/Mines | Found the Drone Emporium 4709 | -9/Mines | Found Prototype Device 4875 | -9/Mines | Deemed a non-threat by the Exiles lab entrance 4875 | -9/Mines | Discovered new exit (range 5) 5088 | -9/Mines | Discovered new exit (range 5) 5113 | -9/Mines | Met a Derelict who couldn't figure out how to use a Trap Extractor 5348 | -9/Mines | Found Powered Armor 5650 | -9/Mines | Build established: Tank 5725 | -9/Mines | Entered Exiles 5790 | -9/Exiles | Met 8R-AWN 5826 | -9/Exiles | Met EX-HEX 5907 | -9/Exiles | Met EX-BIN 6162 | -9/Exiles | Met EX-DEC 6207 | -9/Exiles | Build established: Mutant 6255 | -9/Exiles | Visited The Gauntlet 6372 | -9/Exiles | Learned location of Zion (-7) 6433 | -9/Exiles | Identified Bomb Drone Bay 6593 | -9/Exiles | Attacked by the Exiles 6644 | -9/Exiles | Destroyed 7 combat bots 6796 | -9/Exiles | Core integrity fell below 50% 6801 | -9/Exiles | Lost 7 parts (1p2n2u2w) 6853 | -9/Exiles | Destroyed 8R-AWN 6866 | -9/Exiles | Found 8R-AWN's Boregun 6876 | -9/Exiles | Lost 6 parts (1p3n2w) 6972 | -9/Exiles | Core integrity fell below 20% 6988 | -9/Exiles | Destroyed by DAS Turret with DAS Cannon Last Messages --------------- 06859_ Acquired Lgt. Treads. 06863_ Acquired Hcp. Storage Unit. 06866_ Acquired 8R-AWN's Boregun. 06869_ Acquired Adv. Weapon Cycler. 06872_ Acquired Rocket Launcher. 06873_ Acquired 110 matter. 06876_ Acquired Nuclear Core. 06879_ Acquired Hcp. Matter Pod. 06881_ Acquired Adv. Myomer Leg. 06884_ Acquired Lgt. Treads. 06887_ Acquired Seismic Detector. 06889_ Acquired Lgt. Treads. 06903_ Acquired Bomb Drone Bay. 06906_ Acquired Hpw. Shotgun. 06949_ Hpw. Shotgun destroyed. 06959_ Machine disabled. 06963_ Lgt. Treads destroyed. 06975_ Hpw. Shotgun destroyed. 06979_ Lgt. Treads destroyed. 06983_ Assault Rifle destroyed. Map ----- +----------------------------------------------------+ | ????????????????????????????????????????????## | | ????????????#######?????????????????????????#" | | #####???????# !! "#?????????????????????????#" | | #""##?????# "#?????????????????????????#" | | #?????# "#?????????????????????????#" | | ##???## ""#?????????????#???????????#" | | #####"! ""#????????????? """????????#" | | ##" ""#????????????" """#????????# | | #"" ###????????????" #????????# | | ## #??????????????" #????????#" | | ?# ## ##?????????????" "#????????#" | | ???# "#????????????? ""?????????#" | | ######" ###?###???????" "?????????##" | | !! ### ##??????# #????????##"" | | ###"" ###??### ###??#####"" | | #?##" ####X# #"###""""""" | | ! ##??#" / """""" " "" | | ""###???#"# "" """ " | | # #####?????#### " " | | ##?????????????### | | #?????????????????## | | ???????????????????## | | ????????????????????## | | ????????????????????# # % | | ????????????????????# """""" | | ????????????????????#### @ % ######"" | | ??????????????????????#"" % % ""##????### | | ?????????????????????##""" """##???????? | | ?????????????????????#""" """##????????? | | ?????????????????????#""" ""#?????????? | | ?????????????????????#"" ########??## | | ?????????????????????#""" ## ####" | | ?????????????????????#"" """" | | ?????????????????????##"" t | | ??????????????????????#"" | | ??????????????????????## | | ???????????????????????#" " | | ???????????????????????#"" " ""## # | | ???????????????????????#"" ""#### # | | ???????????????????????#" """"##??# # | | ???????????????????????#""" """#???# # | | ???????????????????????## ""##???! | | ????????????????????????#"" """##???#" | | ????????????????????????##""" ##????#" | | ?????????????????????????##"""" ##?????#!!"" | | ??????????????????????????### #???????#### | | ????????????????????????????##### ##??????????? | | ????????????????????????????????## #???????????? | | ?????????????????????????????????# #???????????? | | ?????????????????????????????????# #???????????? | +----------------------------------------------------+ Best States ------------- Heat Dissipation 35 Energy Generation 18 Energy Capacity 265 Matter Stores 300 Matter Capacity 300 Sight Range 16 Terrain Scan Density 10 Armor Coverage 625 Evasion (%) 55 Targeting Accuracy 5 Recoil Reduction 3 Item Schematics ----------------- None Robot Schematics ------------------ None Fabricated ------------ Nothing Repaired ---------- Assault Rifle | 19% | -9/Materials Lgt. Treads | 3% | -9/Materials Lgt. Treads | 47% | -9/Materials Lgt. Treads | 69% | -9/Materials Alien Tech Used ----------------- None Achievements -------------- None Challenges ------------ None Game ------ Seed RemoteFieldDissipator Manual? 0 Play Time 00:31:23 Cumulative 373.6 hours Start 2025.07.07 @ 15:27:27 End 2025.07.07 @ 15:57:47 Sessions 1 Manual Loads 0 Difficulty Rogue Special Mode None Game No. 253 Rogue 253 Adventurer 0 Explorer 0 Win Type - Total 27 Types 21/0/4/2/0/0/0/0/0/0 Lore% 90 Gallery% 81 Achievement% 67 Wizard Run 0 Options --------- Layout 0 ASCII 1 Keyboard 1 Movement Arrows Keybinds 0 Fullscreen 2 Font 18/Terminus Map View 76x50 Zoom Use 0% Tactical HUD 1 Map Filters NONE Filters NONE Steam 1 RUN: c825399a-7a01-4108-925c-b96ebf443ce8